fUST/lending_fUST_20250217
["ID","MTS","AMOUNT","RATE_DAILY","PERIOD"]
[353269190,1739724643845,-1219.43,8.547e-05,2]
[353269191,1739724643855,-834.19,8.547e-05,2]
[353269192,1739724643864,-1016.19,8.547e-05,2]
[353269193,1739724643874,-500.0,8.547e-05,2]
[353269194,1739724643885,-500.0,8.547e-05,2]
[353269195,1739724643894,-500.0,8.547e-05,2]
[353269196,1739724643903,-500.0,8.547e-05,2]
[353269197,1739724643913,-562.60077828,8.547e-05,2]
[353269198,1739724643922,-1941.65,8.547e-05,2]
[353269199,1739724643932,-500.0,8.547e-05,2]
[353269200,1739724643941,-862.17,8.547e-05,2]
[353269201,1739724643951,-2052.16,8.547e-05,2]
[353269202,1739724643960,-1276.29,8.547e-05,2]
[353269203,1739724643969,-1415.24,8.547e-05,2]
[353269204,1739724643979,-3613.82,8.547e-05,2]
[353269205,1739724643988,-500.0,8.547e-05,2]
[353269206,1739724643998,-500.0,8.547e-05,2]
[353269207,1739724644007,-500.0,8.547e-05,2]
[353269208,1739724644017,-560.32,8.547e-05,2]
[353269209,1739724644026,-500.0,8.547e-05,2]
[353269210,1739724644036,-1173.71,8.547e-05,2]
[353269211,1739724644046,-500.81,8.547e-05,2]
[353269212,1739724644055,-500.0,8.547e-05,2]
[353269213,1739724644064,-500.0,8.63e-05,2]
[353269214,1739724644074,-522.6,8.63e-05,2]
[353269215,1739724644083,-500.0,8.63e-05,2]
[353269216,1739724644094,-500.0,8.63e-05,2]
[353269217,1739724644103,-554.79,8.63e-05,2]
[353269218,1739724644113,-500.0,8.63e-05,2]
[353269219,1739724644124,-500.0,8.63e-05,2]
[353269220,1739724644133,-566.08,8.63e-05,2]
[353269221,1739724644143,-500.0,8.63e-05,2]
[353269222,1739724644152,-500.0,8.63e-05,2]
[353269223,1739724644161,-500.0,8.63e-05,2]
[353269224,1739724644172,-508.54,8.63e-05,2]
[353269225,1739724644182,-807.32,8.63e-05,2]
[353269226,1739724644191,-648.14,8.63e-05,2]
[353269227,1739724644201,-1899.52,8.63e-05,2]
[353269228,1739724644211,-500.0,8.63e-05,2]
[353269229,1739724644220,-500.0,8.63e-05,2]
[353269230,1739724644230,-500.0,8.63e-05,2]
[353269231,1739724644239,-753.23,8.63e-05,2]
[353269232,1739724644249,-500.0,8.63e-05,2]
[353269233,1739724644258,-500.0,8.63e-05,2]
[353269234,1739724644267,-1095.98,8.63e-05,2]
[353269235,1739724644277,-500.0,8.63e-05,2]
[353269236,1739724644286,-500.0,8.63e-05,2]
[353269237,1739724644295,-500.0,8.63e-05,2]
[353269238,1739724644305,-529.8,8.63e-05,2]
[353269239,1739724644315,-519.49,8.63e-05,2]
[353269240,1739724644325,-500.0,8.63e-05,2]
[353269241,1739724644334,-500.0,8.63e-05,2]
[353269242,1739724644344,-1158.79,8.63e-05,2]
[353269243,1739724644353,-553.29,8.63e-05,2]
[353269244,1739724644362,-521.15,8.63e-05,2]
[353269245,1739724644372,-506.88,8.63e-05,2]
[353269246,1739724644382,-607.61,8.63e-05,2]
[353269247,1739724644392,-500.0,8.63e-05,2]
[353269248,1739724644402,-1008.04,8.63e-05,2]
[353269249,1739724644411,-500.0,8.63e-05,2]
[353269250,1739724644420,-500.0,8.63e-05,2]
[353269251,1739724644430,-1809.93,8.63e-05,2]
[353269252,1739724644440,-688.13,8.63e-05,2]
[353269253,1739724644450,-500.0,8.63e-05,2]
[353269254,1739724644460,-697.19,8.63e-05,2]
[353269255,1739724644470,-500.0,8.63e-05,2]
[353269256,1739724644480,-500.0,8.63e-05,2]
[353269257,1739724644489,-519.15,8.63e-05,2]
[353269258,1739724644499,-500.0,8.63e-05,2]
[353269259,1739724644508,-500.0,8.63e-05,2]
[353269260,1739724644517,-683.09,8.63e-05,2]
[353269261,1739724644526,-500.0,8.63e-05,2]
[353269262,1739724644535,-500.0,8.63e-05,2]
[353269263,1739724644545,-14938.91,8.63e-05,2]
[353269264,1739724644554,-2987.59,8.63e-05,2]
[353269265,1739724644564,-500.0,8.63e-05,2]
[353269266,1739724644573,-1504.21,8.63e-05,2]
[353269267,1739724644583,-753.48,8.63e-05,2]
[353269268,1739724644592,-500.0,8.63e-05,2]
[353269269,1739724644601,-500.0,8.63e-05,2]
[353269270,1739724644610,-1192.59,8.63e-05,2]
[353269271,1739724644620,-500.0,8.63e-05,2]
[353269272,1739724644630,-5163.56,8.63e-05,2]
[353269273,1739724644640,-13171.02136101,8.63e-05,2]
[353269274,1739724645269,-500.0,8.383e-05,2]
[353269275,1739724645280,-500.0,8.465e-05,2]
[353269276,1739724645290,-500.0,8.547e-05,2]
[353269277,1739724645300,-1955.07011468,8.63e-05,2]
[353269283,1739724645685,-500.0,8.219e-05,2]
[353269284,1739724645695,-500.0,8.301e-05,2]
[353269285,1739724645705,-14626.38623484,8.63e-05,2]
[353269287,1739724645716,-564.24,8.63e-05,2]
[353269288,1739724645728,-998.25,8.63e-05,2]
[353269302,1739724646055,-693.99172038,8.63e-05,2]
[353269303,1739724646067,-1933.1977626,8.63e-05,2]
[353269304,1739724646078,-1022.66158033,8.63e-05,2]
[353269317,1739725011925,300.0,0.00019,120]
[353269319,1739725033575,1333.0,0.00017425,120]
[353269320,1739725816283,1333.0,0.00017425,120]
[353269357,1739725832285,-152.40806877,8.218e-05,2]
[353269358,1739725832295,-607.73098418,8.218e-05,2]
[353269361,1739725832305,-162.4041194,8.218e-05,2]
[353269362,1739725832315,-500.0,8.218e-05,2]
[353269364,1739725832324,-157.30755918,8.218e-05,2]
[353269366,1739725832335,-467.46299126,8.218e-05,2]
[353269368,1739725832345,-500.0,8.219e-05,2]
[353269370,1739725832354,-500.0,8.219e-05,2]
[353269372,1739725832364,-500.0,8.219e-05,2]
[353269374,1739725832374,-500.0,8.219e-05,2]
[353269376,1739725832383,-595.73,8.219e-05,2]
[353269378,1739725832393,-500.0,8.219e-05,2]
[353269379,1739725832404,-500.0,8.219e-05,2]
[353269380,1739725832414,-500.0,8.219e-05,2]
[353269381,1739725832423,-500.0,8.219e-05,2]
[353269382,1739725832434,-256.32044102,8.219e-05,2]
[353269383,1739725832444,-500.0,8.219e-05,2]
[353269384,1739725832454,-500.0,8.219e-05,2]
[353269386,1739725832464,-202.69970808,8.219e-05,2]
[353269387,1739725832474,-500.0,8.219e-05,2]
[353269388,1739725832483,-543.72,8.219e-05,2]
[353269389,1739725832492,-500.0,8.219e-05,2]
[353269390,1739725832502,-503.45658692,8.219e-05,2]
[353269391,1739725832512,-500.0,8.219e-05,2]
[353269392,1739725832522,-500.0,8.219e-05,2]
[353269393,1739725832532,-500.0,8.219e-05,2]
[353269394,1739725832542,-458.52951438,8.219e-05,2]
[353269395,1739725832551,-500.0,8.219e-05,2]
[353269396,1739725832561,-327.78551959,8.219e-05,2]
[353269397,1739725832571,-500.0,8.219e-05,2]
[353269398,1739725832581,-500.0,8.219e-05,2]
[353269399,1739725832592,-519.18,8.219e-05,2]
[353269400,1739725832602,-195.58257928,8.219e-05,2]
[353269401,1739725832613,-500.0,8.219e-05,2]
[353269402,1739725832622,-606.78,8.219e-05,2]
[353269403,1739725832632,-500.0,8.219e-05,2]
[353269404,1739725832642,-500.0,8.219e-05,2]
[353269405,1739725832653,-500.0,8.219e-05,2]
[353269406,1739725832663,-500.0,8.219e-05,2]
[353269407,1739725832807,-1486.72,8.219e-05,2]
[353269408,1739725832817,-644.5,8.219e-05,2]
[353269409,1739725832827,-500.0,8.219e-05,2]
[353269410,1739725832836,-500.0,8.219e-05,2]
[353269411,1739725832846,-500.0,8.219e-05,2]
[353269412,1739725832855,-500.0,8.219e-05,2]
[353269413,1739725832865,-500.0,8.219e-05,2]
[353269414,1739725832874,-500.0,8.219e-05,2]
[353269415,1739725832883,-500.0,8.219e-05,2]
[353269416,1739725832893,-500.0,8.219e-05,2]
[353269417,1739725832902,-500.0,8.219e-05,2]
[353269418,1739725832912,-500.0,8.219e-05,2]
[353269419,1739725832922,-500.0,8.219e-05,2]
[353269420,1739725832932,-500.0,8.219e-05,2]
[353269421,1739725832942,-500.0,8.219e-05,2]
[353269422,1739725832952,-877.17,8.219e-05,2]
[353269423,1739725832963,-500.0,8.219e-05,2]
[353269424,1739725832973,-500.0,8.219e-05,2]
[353269425,1739725832982,-500.0,8.219e-05,2]
[353269426,1739725832992,-500.0,8.219e-05,2]
[353269427,1739725833002,-500.0,8.219e-05,2]
[353269428,1739725833012,-500.0,8.219e-05,2]
[353269429,1739725833022,-500.0,8.219e-05,2]
[353269430,1739725833032,-500.0,8.219e-05,2]
[353269431,1739725833043,-500.0,8.219e-05,2]
[353269432,1739725833053,-500.0,8.219e-05,2]
[353269433,1739725833064,-500.0,8.219e-05,2]
[353269434,1739725833074,-500.0,8.219e-05,2]
[353269435,1739725833083,-500.0,8.219e-05,2]
[353269436,1739725833095,-500.0,8.219e-05,2]
[353269437,1739725833106,-338.57496787,8.219e-05,2]
[353269438,1739725833115,-500.0,8.219e-05,2]
[353269439,1739725833126,-500.0,8.219e-05,2]
[353269440,1739725833136,-500.0,8.219e-05,2]
[353269441,1739725833146,-500.0,8.219e-05,2]
[353269442,1739725833156,-500.0,8.219e-05,2]
[353269443,1739725833166,-500.0,8.219e-05,2]
[353269444,1739725833176,-500.0,8.219e-05,2]
[353269445,1739725833186,-438.19380035,8.219e-05,2]
[353269446,1739725833196,-500.0,8.219e-05,2]
[353269447,1739725833208,-500.0,8.219e-05,2]
[353269448,1739725833222,-498.34306126,8.219e-05,2]
[353269449,1739725833253,-400.18693874,8.219e-05,2]
[353269450,1739725833263,-500.0,8.219e-05,2]
[353269451,1739725833274,-500.0,8.219e-05,2]
[353269452,1739725833284,-500.0,8.219e-05,2]
[353269453,1739725833295,-500.0,8.219e-05,2]
[353269454,1739725833305,-500.0,8.219e-05,2]
[353269455,1739725833315,-500.0,8.219e-05,2]
[353269456,1739725833325,-500.0,8.219e-05,2]
[353269457,1739725833334,-500.0,8.219e-05,2]
[353269458,1739725833344,-500.0,8.219e-05,2]
[353269459,1739725833353,-499.73143074,8.219e-05,2]
[353269460,1739725833366,-0.26856926,8.219e-05,2]
[353269461,1739725833377,-500.0,8.219e-05,2]
[353269462,1739725833387,-500.0,8.219e-05,2]
[353269463,1739725833398,-505.99980927,8.219e-05,2]
[353269464,1739725833409,-806.8,8.219e-05,2]
[353269465,1739725833420,-500.0,8.219e-05,2]
[353269466,1739725833430,-500.0,8.219e-05,2]
[353269467,1739725833440,-502.45778796,8.219e-05,2]
[353269468,1739725833451,-500.0,8.219e-05,2]
[353269469,1739725833461,-500.0,8.219e-05,2]
[353269470,1739725833471,-571.76,8.219e-05,2]
[353269471,1739725833482,-500.0,8.219e-05,2]
[353269472,1739725833494,-500.0,8.219e-05,2]
[353269473,1739725833504,-500.0,8.219e-05,2]
[353269474,1739725833515,-500.0,8.219e-05,2]
[353269475,1739725833526,-504.1575931,8.219e-05,2]
[353269476,1739725833536,-1454.81,8.219e-05,2]
[353269477,1739725833547,-500.0,8.219e-05,2]
[353269478,1739725833557,-500.0,8.219e-05,2]
[353269479,1739725833567,-500.0,8.219e-05,2]
[353269480,1739725833578,-500.0,8.219e-05,2]
[353269481,1739725833588,-500.0,8.219e-05,2]
[353269482,1739725833598,-557.76,8.219e-05,2]
[353269483,1739725833608,-500.0,8.219e-05,2]
[353269484,1739725833618,-500.0,8.219e-05,2]
[353269485,1739725833628,-500.0,8.219e-05,2]
[353269486,1739725833638,-500.0,8.219e-05,2]
[353269487,1739725833648,-500.0,8.219e-05,2]
[353269488,1739725833659,-500.0,8.219e-05,2]
[353269489,1739725833668,-500.0,8.219e-05,2]
[353269490,1739725833678,-500.0,8.219e-05,2]
[353269491,1739725833687,-588.34928311,8.219e-05,2]
[353269492,1739725833697,-500.0,8.219e-05,2]
[353269493,1739725833707,-500.0,8.219e-05,2]
[353269494,1739725833717,-500.0,8.219e-05,2]
[353269495,1739725833727,-500.0,8.219e-05,2]
[353269496,1739725833737,-500.0,8.219e-05,2]
[353269497,1739725833749,-500.0,8.219e-05,2]
[353269498,1739725833761,-507.43299244,8.219e-05,2]
[353269499,1739725833773,-553.99,8.219e-05,2]
[353269500,1739725833784,-500.0,8.219e-05,2]
[353269501,1739725833795,-500.0,8.219e-05,2]
[353269502,1739725833805,-165.51770334,8.219e-05,2]
[353269503,1739725833817,-500.0,8.219e-05,2]
[353269504,1739725833827,-467.40683247,8.219e-05,2]
[353269505,1739725833838,-500.0,8.219e-05,2]
[353269506,1739725833849,-500.0,8.219e-05,2]
[353269507,1739725833859,-500.0,8.219e-05,2]
[353269508,1739725833869,-500.0,8.219e-05,2]
[353269509,1739725833879,-500.0,8.219e-05,2]
[353269510,1739725833889,-500.0,8.219e-05,2]
[353269511,1739725833900,-500.0,8.219e-05,2]
[353269512,1739725833910,-500.0,8.219e-05,2]
[353269513,1739725833920,-500.0,8.219e-05,2]
[353269514,1739725833930,-500.0,8.219e-05,2]
[353269515,1739725833941,-500.0,8.219e-05,2]
[353269516,1739725833952,-500.0,8.219e-05,2]
[353269517,1739725833964,-500.0,8.219e-05,2]
[353269518,1739725833975,-500.0,8.219e-05,2]
[353269519,1739725833986,-500.0,8.219e-05,2]
[353269520,1739725833996,-500.0,8.219e-05,2]
[353269521,1739725834006,-500.0,8.219e-05,2]
[353269522,1739725834017,-550.0,8.219e-05,2]
[353269523,1739725834028,-500.0,8.219e-05,2]
[353269524,1739725834038,-500.0,8.219e-05,2]
[353269525,1739725834050,-500.0,8.219e-05,2]
[353269526,1739725834061,-500.0,8.219e-05,2]
[353269527,1739725834071,-500.0,8.219e-05,2]
[353269528,1739725834082,-500.0,8.219e-05,2]
[353269529,1739725834092,-500.0,8.219e-05,2]
[353269530,1739725834102,-500.0,8.219e-05,2]
[353269531,1739725834111,-500.0,8.219e-05,2]
[353269532,1739725834121,-500.0,8.219e-05,2]
[353269533,1739725834131,-500.0,8.219e-05,2]
[353269534,1739725834140,-500.0,8.219e-05,2]
[353269535,1739725834151,-2125.32,8.219e-05,2]
[353269536,1739725834160,-500.0,8.219e-05,2]
[353269537,1739725834171,-418.73119519,8.219e-05,2]
[353269538,1739725834180,-263.31072402,8.219e-05,2]
[353269539,1739725834190,-1022.21,8.219e-05,2]
[353269540,1739725834201,-500.0,8.219e-05,2]
[353269541,1739725834214,-500.0,8.219e-05,2]
[353269542,1739725834228,-910.15,8.219e-05,2]
[353269543,1739725834238,-500.0,8.219e-05,2]
[353269544,1739725834248,-500.0,8.219e-05,2]
[353269545,1739725834260,-500.0,8.219e-05,2]
[353269546,1739725834270,-2445.24,8.219e-05,2]
[353269547,1739725834281,-500.0,8.219e-05,2]
[353269548,1739725834294,-5196.71484915,8.219e-05,2]
[353269549,1739725834308,-1696.86499,8.219e-05,2]
[353269555,1739725838171,-6069.54016085,8.219e-05,2]
[353269556,1739725838181,-500.0,8.219e-05,2]
[353269557,1739725838192,-500.0,8.219e-05,2]
[353269558,1739725838203,-500.0,8.219e-05,2]
[353269559,1739725838218,-500.0,8.219e-05,2]
[353269560,1739725838228,-1021.88,8.219e-05,2]
[353269561,1739725838238,-1902.28,8.219e-05,2]
[353269562,1739725838247,-500.0,8.219e-05,2]
[353269563,1739725838258,-500.0,8.219e-05,2]
[353269564,1739725838268,-500.0,8.219e-05,2]
[353269565,1739725838278,-899.68,8.219e-05,2]
[353269566,1739725838290,-1040.04,8.219e-05,2]
[353269567,1739725838299,-31407.96,8.219e-05,2]
[353269568,1739725838309,-500.0,8.219e-05,2]
[353269569,1739725838319,-500.0,8.219e-05,2]
[353269570,1739725838329,-3046.21,8.219e-05,2]
[353269571,1739725838339,-500.0,8.219e-05,2]
[353269572,1739725838348,-1454.65,8.219e-05,2]
[353269573,1739725838360,-500.0,8.219e-05,2]
[353269574,1739725838371,-5407.42,8.219e-05,2]
[353269575,1739725838381,-500.0,8.219e-05,2]
[353269576,1739725838391,-816.4,8.219e-05,2]
[353269577,1739725838401,-500.0,8.219e-05,2]
[353269578,1739725838411,-500.0,8.219e-05,2]
[353269579,1739725838422,-500.0,8.219e-05,2]
[353269580,1739725838431,-823.69,8.219e-05,2]
[353269581,1739725838442,-504.42604031,8.219e-05,2]
[353269582,1739725838451,-644.62,8.219e-05,2]
[353269583,1739725838461,-500.0,8.219e-05,2]
[353269584,1739725838470,-500.0,8.219e-05,2]
[353269585,1739725838479,-500.0,8.219e-05,2]
[353269586,1739725838489,-500.0,8.219e-05,2]
[353269587,1739725838499,-500.0,8.219e-05,2]
[353269588,1739725838508,-500.0,8.219e-05,2]
[353269589,1739725838517,-500.0,8.219e-05,2]
[353269590,1739725838527,-500.0,8.219e-05,2]
[353269591,1739725838537,-500.0,8.219e-05,2]
[353269592,1739725838546,-301.21532777,8.219e-05,2]
[353269593,1739725838556,-500.0,8.219e-05,2]
[353269594,1739725838565,-500.0,8.219e-05,2]
[353269595,1739725838574,-500.0,8.219e-05,2]
[353269596,1739725838583,-500.0,8.219e-05,2]
[353269597,1739725838593,-2349.14,8.219e-05,2]
[353269598,1739725838602,-500.0,8.219e-05,2]
[353269599,1739725838612,-500.0,8.219e-05,2]
[353269600,1739725838622,-500.0,8.219e-05,2]
[353269601,1739725838632,-513.98,8.219e-05,2]
[353269602,1739725838642,-500.0,8.219e-05,2]
[353269603,1739725838652,-517.53111765,8.219e-05,2]
[353269604,1739725838662,-500.0,8.219e-05,2]
[353269605,1739725838671,-500.0,8.219e-05,2]
[353269606,1739725838681,-501.08047821,8.219e-05,2]
[353269607,1739725838691,-1223.3,8.219e-05,2]
[353269608,1739725838700,-440.36897376,8.219e-05,2]
[353269609,1739725838710,-500.0,8.219e-05,2]
[353269610,1739725838720,-500.0,8.219e-05,2]
[353269611,1739725838729,-500.0,8.219e-05,2]
[353269612,1739725838739,-500.0,8.219e-05,2]
[353269613,1739725838748,-867.05,8.219e-05,2]
[353269614,1739725838757,-500.0,8.219e-05,2]
[353269615,1739725838767,-505.74745093,8.219e-05,2]
[353269616,1739725838777,-500.0,8.219e-05,2]
[353269617,1739725838786,-500.0,8.219e-05,2]
[353269618,1739725838795,-500.0,8.219e-05,2]
[353269619,1739725838804,-2400.91,8.219e-05,2]
[353269620,1739725838814,-681.24,8.219e-05,2]
[353269621,1739725838824,-500.0,8.219e-05,2]
[353269622,1739725838833,-500.0,8.219e-05,2]
[353269623,1739725838843,-364.44984337,8.219e-05,2]
[353269624,1739725838854,-288.04560858,8.219e-05,2]
[353269625,1739725838863,-500.0,8.219e-05,2]
[353269626,1739725838873,-500.0,8.219e-05,2]
[353269627,1739725838882,-783.19,8.219e-05,2]
[353269628,1739725838892,-262.21998038,8.219e-05,2]
[353269629,1739725838901,-509.85656518,8.219e-05,2]
[353269630,1739725838911,-500.0,8.219e-05,2]
[353269631,1739725838920,-1593.71,8.219e-05,2]
[353269632,1739725838929,-500.0,8.219e-05,2]
[353269633,1739725838939,-500.0,8.219e-05,2]
[353269634,1739725838948,-1165.34,8.219e-05,2]
[353269635,1739725838957,-513.0595766,8.219e-05,2]
[353269636,1739725838968,-500.0,8.219e-05,2]
[353269637,1739725838977,-500.0,8.219e-05,2]
[353269638,1739725838987,-500.0,8.219e-05,2]
[353269639,1739725838996,-1365.49,8.219e-05,2]
[353269640,1739725839005,-500.0,8.219e-05,2]
[353269641,1739725839014,-349.98590793,8.219e-05,2]
[353269642,1739725839036,-150.01409207,8.219e-05,2]
[353269643,1739725839046,-1687.01,8.219e-05,2]
[353269644,1739725839058,-500.0,8.219e-05,2]
[353269645,1739725839067,-500.0,8.219e-05,2]
[353269646,1739725839078,-500.0,8.219e-05,2]
[353269647,1739725839088,-500.0,8.219e-05,2]
[353269648,1739725839102,-500.0,8.219e-05,2]
[353269649,1739725839112,-500.0,8.219e-05,2]
[353269650,1739725839121,-500.0,8.219e-05,2]
[353269651,1739725839130,-500.0,8.219e-05,2]
[353269652,1739725839141,-502.4297457,8.219e-05,2]
[353269653,1739725839150,-500.0,8.219e-05,2]
[353269654,1739725839160,-500.0,8.219e-05,2]
[353269655,1739725839171,-500.0,8.219e-05,2]
[353269656,1739725839181,-500.0,8.219e-05,2]
[353269657,1739725839190,-500.0,8.219e-05,2]
[353269658,1739725839201,-3263.64,8.219e-05,2]
[353269659,1739725839213,-1035.35,8.219e-05,2]
[353269660,1739725839225,-500.0,8.219e-05,2]
[353269661,1739725839235,-500.0,8.219e-05,2]
[353269662,1739725839245,-500.0,8.219e-05,2]
[353269663,1739725839257,-500.0,8.219e-05,2]
[353269664,1739725839267,-500.0,8.219e-05,2]
[353269665,1739725839277,-500.0,8.219e-05,2]
[353269666,1739725839288,-9154.58954643,8.219e-05,2]
[353269667,1739725839458,-3209.59150975,8.219e-05,2]
[353269668,1739725839471,-247.63894382,8.219e-05,2]
[353269669,1739725839482,-500.0,8.219e-05,2]
[353269670,1739725839491,-204.26105608,8.219e-05,2]
[353269808,1739725841265,-295.73894392,8.219e-05,2]
[353269809,1739725841279,-473.11195959,8.219e-05,2]
[353269810,1739725841293,-76.89410472,8.219e-05,2]
[353269811,1739725841306,-423.10589528,8.219e-05,2]
[353269812,1739725841317,-1576.91816872,8.219e-05,2]
[353269813,1739725841333,-2884.08183128,8.219e-05,2]
[353269814,1739725841345,-500.0,8.219e-05,2]
[353269815,1739725841358,-1281.18,8.219e-05,2]
[353269816,1739725841371,-2527.08,8.219e-05,2]
[353269817,1739725841385,-500.0,8.219e-05,2]
[353269818,1739725841398,-500.0,8.219e-05,2]
[353269819,1739725841412,-500.0,8.219e-05,2]
[353269820,1739725841424,-500.0,8.219e-05,2]
[353269822,1739725841434,-500.0,8.301e-05,2]
[353269824,1739725841445,-500.0,8.301e-05,2]
[353269827,1739725841457,-500.0,8.301e-05,2]
[353269829,1739725841472,-595.73,8.301e-05,2]
[353269832,1739725841485,-500.0,8.301e-05,2]
[353269834,1739725841496,-500.0,8.301e-05,2]
[353269836,1739725841508,-500.0,8.301e-05,2]
[353269839,1739725841520,-500.0,8.301e-05,2]
[353269841,1739725841533,-543.72,8.301e-05,2]
[353269843,1739725841543,-500.0,8.301e-05,2]
[353269845,1739725841554,-500.0,8.301e-05,2]
[353269847,1739725841565,-500.0,8.301e-05,2]
[353269850,1739725841578,-519.18,8.301e-05,2]
[353269852,1739725841589,-606.78,8.301e-05,2]
[353269855,1739725841601,-500.68603638,8.301e-05,2]
[353269857,1739725841613,-257.37554615,8.301e-05,2]
[353269859,1739725841625,-1486.72,8.301e-05,2]
[353269861,1739725841636,-644.5,8.301e-05,2]
[353269864,1739725841648,-500.0,8.301e-05,2]
[353269866,1739725841659,-500.0,8.301e-05,2]
[353269868,1739725841671,-500.0,8.301e-05,2]
[353269871,1739725841683,-500.0,8.301e-05,2]
[353269873,1739725841695,-500.0,8.301e-05,2]
[353269875,1739725841707,-500.0,8.301e-05,2]
[353269877,1739725841718,-500.0,8.301e-05,2]
[353269879,1739725841730,-500.0,8.301e-05,2]
[353269882,1739725841741,-500.0,8.301e-05,2]
[353269884,1739725841753,-877.17,8.301e-05,2]
[353269886,1739725841765,-500.0,8.301e-05,2]
[353269889,1739725841777,-500.0,8.301e-05,2]
[353269891,1739725841788,-500.0,8.301e-05,2]
[353269893,1739725841799,-500.0,8.301e-05,2]
[353269895,1739725841811,-500.0,8.301e-05,2]
[353269897,1739725841822,-500.0,8.301e-05,2]
[353269900,1739725841833,-500.0,8.301e-05,2]
[353269902,1739725841846,-500.0,8.301e-05,2]
[353269904,1739725841857,-500.0,8.301e-05,2]
[353269907,1739725841869,-500.0,8.301e-05,2]
[353269909,1739725841880,-500.0,8.301e-05,2]
[353269911,1739725841892,-898.53,8.301e-05,2]
[353269913,1739725841903,-500.0,8.301e-05,2]
[353269915,1739725841915,-500.0,8.301e-05,2]
[353269918,1739725841927,-500.0,8.301e-05,2]
[353269920,1739725841941,-276.79606257,8.301e-05,2]
[353269923,1739725841952,-500.0,8.301e-05,2]
[353269925,1739725841964,-806.8,8.301e-05,2]
[353269927,1739725841976,-500.0,8.301e-05,2]
[353269929,1739725841987,-500.0,8.301e-05,2]
[353269932,1739725842000,-571.76,8.301e-05,2]
[353269934,1739725842011,-500.0,8.301e-05,2]
[353269936,1739725842023,-500.0,8.301e-05,2]
[353269938,1739725842034,-1454.81,8.301e-05,2]
[353269940,1739725842046,-500.0,8.301e-05,2]
[353269943,1739725842058,-500.0,8.301e-05,2]
[353269945,1739725842069,-500.0,8.301e-05,2]
[353269947,1739725842081,-500.0,8.301e-05,2]
[353269949,1739725842092,-557.76,8.301e-05,2]
[353269952,1739725842103,-500.0,8.301e-05,2]
[353269954,1739725842114,-500.0,8.301e-05,2]
[353269956,1739725842125,-500.0,8.301e-05,2]
[353269958,1739725842137,-500.0,8.301e-05,2]
[353269961,1739725842148,-500.0,8.301e-05,2]
[353269963,1739725842159,-500.0,8.301e-05,2]
[353269965,1739725842170,-500.0,8.301e-05,2]
[353269967,1739725842182,-500.0,8.301e-05,2]
[353269970,1739725842193,-500.0,8.301e-05,2]
[353269972,1739725842206,-553.99,8.301e-05,2]
[353269974,1739725842225,-500.0,8.301e-05,2]
[353269991,1739725842374,-500.0,8.301e-05,2]
[353269993,1739725842385,-500.0,8.301e-05,2]
[353269995,1739725842395,-500.0,8.301e-05,2]
[353269997,1739725842404,-500.0,8.301e-05,2]
[353269999,1739725842413,-500.0,8.301e-05,2]
[353270001,1739725842422,-500.0,8.301e-05,2]
[353270003,1739725842432,-500.0,8.301e-05,2]
[353270005,1739725842441,-500.0,8.301e-05,2]
[353270007,1739725842451,-500.0,8.301e-05,2]
[353270009,1739725842460,-500.0,8.301e-05,2]
[353270011,1739725842469,-520.60028929,8.301e-05,2]
[353270013,1739725842479,-500.0,8.301e-05,2]
[353270015,1739725842488,-500.0,8.301e-05,2]
[353270017,1739725842497,-529.52977285,8.301e-05,2]
[353270019,1739725842506,-500.0,8.301e-05,2]
[353270021,1739725842516,-437.36013187,8.301e-05,2]
[353270023,1739725842525,-500.0,8.301e-05,2]
[353270025,1739725842534,-2125.32,8.301e-05,2]
[353270027,1739725842543,-517.54206974,8.301e-05,2]
[353270029,1739725842552,-1022.21,8.301e-05,2]
[353270031,1739725842561,-500.0,8.301e-05,2]
[353270033,1739725842571,-501.65443903,8.301e-05,2]